[Event "Elitserien 2019/2020, round 7-9"]
[Site "Elite stadshotellet, Kungsgatan 6, Vaxjo, Sweden"]
[Date "2020.10.17"]
[Round "2.6"]
[White "Fraenkel, Mikael"]
[Black "Olofsson-Dolk, Mattis"]
[Result "0-1"]
[TimeControl "90 minutes for 40 moves + 30 minutes for the rest of the game + 30 seconds per move from move one."]
[WhiteFideId "1706985"]
[BlackFideId "1715178"]
[WhiteElo "2045"]
[BlackElo "2218"]

1. e4 {[%clk 01:19:44]} {[%emt 00:11:15]} c5 {[%clk 01:30:48]} {[%emt
00:00:12]} 2. Nf3 {[%clk 01:19:58]} {[%emt 00:00:16]} d6 {[%clk 01:31:11]}
{[%emt 00:00:07]} 3. d4 {[%clk 01:20:05]} {[%emt 00:00:23]} cxd4 {[%clk
01:31:34]} {[%emt 00:00:07]} 4. Nxd4 {[%clk 01:20:29]} {[%emt 00:00:06]} Nf6
{[%clk 01:31:58]} {[%emt 00:00:06]} 5. Nc3 {[%clk 01:20:52]} {[%emt 00:00:07]}
a6 {[%clk 01:32:20]} {[%emt 00:00:08]} 6. Be2 {[%clk 01:21:14]} {[%emt
00:00:08]} e5 {[%clk 01:32:43]} {[%emt 00:00:07]} 7. Nb3 {[%clk 01:21:38]}
{[%emt 00:00:05]} Be7 {[%clk 01:33:07]} {[%emt 00:00:06]} 8. O-O {[%clk
01:22:02]} {[%emt 00:00:07]} O-O {[%clk 01:33:27]} {[%emt 00:00:09]} 9. Kh1
{[%clk 01:22:27]} {[%emt 00:00:05]} b5 {[%clk 01:33:19]} {[%emt 00:00:38]} 10.
a4 {[%clk 01:22:24]} {[%emt 00:00:32]} Bb7 {[%clk 01:33:01]} {[%emt 00:00:47]}
11. f3 {[%clk 00:43:27]} {[%emt 00:39:29]} b4 {[%clk 01:31:42]} {[%emt
00:01:48]} 12. Nd5 {[%clk 00:41:42]} {[%emt 00:02:15]} Nxd5 {[%clk 01:30:25]}
{[%emt 00:01:47]} 13. exd5 {[%clk 00:42:06]} {[%emt 00:00:06]} Nd7 {[%clk
01:27:02]} {[%emt 00:03:53]} 14. a5 {[%clk 00:40:10]} {[%emt 00:02:26]} Nf6
{[%clk 01:24:17]} {[%emt 00:03:14]} 15. Bc4 {[%clk 00:39:29]} {[%emt 00:01:11]}
Qc7 {[%clk 01:20:40]} {[%emt 00:04:07]} 16. Qd3 {[%clk 00:34:49]} {[%emt
00:05:10]} Rfc8 {[%clk 01:19:15]} {[%emt 00:01:56]} 17. Nd2 {[%clk 00:34:30]}
{[%emt 00:00:50]} Qc5 {[%clk 01:16:55]} {[%emt 00:02:49]} 18. b3 {[%clk
00:33:21]} {[%emt 00:01:39]} Bxd5 {[%clk 01:05:39]} {[%emt 00:11:46]} 19. Rd1
{[%clk 00:29:46]} {[%emt 00:04:05]} Rc6 {[%clk 00:38:53]} {[%emt 00:27:16]} 20.
Ra4 {[%clk 00:25:58]} {[%emt 00:04:18]} e4 {[%clk 00:33:14]} {[%emt 00:06:09]}
21. Qe2 {[%clk 00:16:46]} {[%emt 00:09:42]} exf3 {[%clk 00:28:35]} {[%emt
00:05:10]} 22. gxf3 {[%clk 00:16:14]} {[%emt 00:01:02]} Bxc4 {[%clk 00:24:52]}
{[%emt 00:04:13]} 23. Nxc4 {[%clk 00:15:57]} {[%emt 00:00:47]} d5 {[%clk
00:24:45]} {[%emt 00:00:38]} 24. Nb6 {[%clk 00:10:35]} {[%emt 00:05:52]} Re8
{[%clk 00:23:42]} {[%emt 00:01:32]} 25. Be3 {[%clk 00:03:55]} {[%emt 00:07:10]}
Qxc2 {[%clk 00:18:49]} {[%emt 00:05:23]} 26. Qxc2 {[%clk 00:03:56]} {[%emt
00:00:30]} Rxc2 {[%clk 00:19:17]} {[%emt 00:00:02]} 27. Bd4 {[%clk 00:03:51]}
{[%emt 00:00:35]} Bc5 {[%clk 00:15:06]} {[%emt 00:04:41]} 28. Bxc5 {[%clk
00:03:06]} {[%emt 00:01:15]} Rxc5 {[%clk 00:15:34]} {[%emt 00:00:02]} 29. Kg2
{[%clk 00:02:20]} {[%emt 00:01:16]} g6 {[%clk 00:14:22]} {[%emt 00:01:42]} 30.
Rd4 {[%clk 00:02:42]} {[%emt 00:00:08]} Re2+ {[%clk 00:13:45]} {[%emt
00:01:07]} 31. Kh3 {[%clk 00:01:53]} {[%emt 00:01:19]} Rcc2 {[%clk 00:13:49]}
{[%emt 00:00:25]} 32. Nxd5 {[%clk 00:01:30]} {[%emt 00:00:54]} Rxh2+ {[%clk
00:14:12]} {[%emt 00:00:07]} 33. Kg3 {[%clk 00:01:59]} {[%emt 00:00:01]} Nh5+
{[%clk 00:14:29]} {[%emt 00:00:13]} 34. Kg4 {[%clk 00:02:00]} {[%emt 00:00:29]}
Rcg2# {[%clk 00:14:53]} {[%emt 00:00:06]} 0-1

[Event "Elitserien 2019/2020, round 7-9"]
[Site "Elite stadshotellet, Kungsgatan 6, Vaxjo, Sweden"]
[Date "2020.10.17"]
[Round "2.7"]
[White "Lindahl, Emil"]
[Black "Andersson, Bjorn"]
[Result "1-0"]
[TimeControl "90 minutes for 40 moves + 30 minutes for the rest of the game + 30 seconds per move from move one."]
[BlackTitle "FM"]
[WhiteFideId "1713116"]
[BlackFideId "1702114"]
[WhiteElo "2179"]
[BlackElo "2153"]

1. d4 {[%clk 01:30:57]} {[%emt 00:00:02]} c5 {[%clk 01:30:55]} {[%emt
00:00:06]} 2. d5 {[%clk 01:30:54]} {[%emt 00:00:32]} d6 {[%clk 01:30:13]}
{[%emt 00:01:11]} 3. c4 {[%clk 01:30:58]} {[%emt 00:00:26]} g6 {[%clk
01:30:38]} {[%emt 00:00:06]} 4. Nc3 {[%clk 01:31:12]} {[%emt 00:00:15]} Bg7
{[%clk 01:31:03]} {[%emt 00:00:05]} 5. Nf3 {[%clk 01:31:28]} {[%emt 00:00:14]}
Na6 {[%clk 01:31:27]} {[%emt 00:00:06]} 6. e4 {[%clk 01:30:29]} {[%emt
00:01:29]} Nc7 {[%clk 01:31:50]} {[%emt 00:00:07]} 7. Be2 {[%clk 01:29:11]}
{[%emt 00:01:48]} Bd7 {[%clk 01:32:06]} {[%emt 00:00:14]} 8. a4 {[%clk
01:28:10]} {[%emt 00:01:32]} Nf6 {[%clk 01:32:09]} {[%emt 00:00:28]} 9. O-O
{[%clk 01:25:37]} {[%emt 00:03:03]} O-O {[%clk 01:32:09]} {[%emt 00:00:30]} 10.
Re1 {[%clk 01:21:52]} {[%emt 00:04:14]} a6 {[%clk 01:32:30]} {[%emt 00:00:10]}
11. a5 {[%clk 01:16:52]} {[%emt 00:05:30]} Rb8 {[%clk 01:32:56]} {[%emt
00:00:03]} 12. Qc2 {[%clk 01:11:55]} {[%emt 00:05:27]} e5 {[%clk 01:31:04]}
{[%emt 00:02:23]} 13. Na4 {[%clk 01:01:31]} {[%emt 00:10:54]} Nce8 {[%clk
01:17:55]} {[%emt 00:13:38]} 14. Nb6 {[%clk 00:55:55]} {[%emt 00:06:06]} Bg4
{[%clk 01:17:47]} {[%emt 00:00:38]} 15. Be3 {[%clk 00:45:54]} {[%emt 00:10:31]}
Nd7 {[%clk 01:17:06]} {[%emt 00:01:11]} 16. Nxd7 {[%clk 00:35:35]} {[%emt
00:10:50]} Qxd7 {[%clk 01:16:40]} {[%emt 00:00:56]} 17. b4 {[%clk 00:34:53]}
{[%emt 00:01:12]} cxb4 {[%clk 01:11:31]} {[%emt 00:05:39]} 18. Rab1 {[%clk
00:28:24]} {[%emt 00:06:59]} f5 {[%clk 01:11:39]} {[%emt 00:00:23]} 19. Rxb4
{[%clk 00:27:12]} {[%emt 00:01:41]} fxe4 {[%clk 01:11:37]} {[%emt 00:00:31]} 20.
Ng5 {[%clk 00:26:21]} {[%emt 00:01:22]} Nf6 {[%clk 01:06:38]} {[%emt 00:05:29]}
21. Bxg4 {[%clk 00:10:08]} {[%emt 00:16:43]} Nxg4 {[%clk 01:04:34]} {[%emt
00:02:34]} 22. Ne6 {[%clk 00:07:51]} {[%emt 00:02:47]} Rf7 {[%clk 00:57:57]}
{[%emt 00:07:07]} 23. Qxe4 {[%clk 00:07:06]} {[%emt 00:01:15]} Nxe3 {[%clk
00:51:51]} {[%emt 00:06:35]} 24. Qxe3 {[%clk 00:07:09]} {[%emt 00:00:27]} Bf6
{[%clk 00:50:14]} {[%emt 00:02:07]} 25. Reb1 {[%clk 00:05:27]} {[%emt
00:02:13]} Bd8 {[%clk 00:49:21]} {[%emt 00:01:23]} 26. Qa7 {[%clk 00:04:36]}
{[%emt 00:01:21]} Qc8 {[%clk 00:49:10]} {[%emt 00:00:41]} 27. Nxd8 {[%clk
00:01:49]} {[%emt 00:03:17]} Qxd8 {[%clk 00:49:16]} {[%emt 00:00:24]} 28. Qxa6
{[%clk 00:01:36]} {[%emt 00:00:44]} Rxf2 {[%clk 00:38:09]} {[%emt 00:11:36]} 29.
Rxb7 {[%clk 00:01:15]} {[%emt 00:00:51]} Rxb7 {[%clk 00:33:49]} {[%emt
00:04:50]} 30. Qxb7 {[%clk 00:01:43]} {[%emt 00:00:02]} Rf8 {[%clk 00:34:00]}
{[%emt 00:00:19]} 31. a6 {[%clk 00:01:41]} {[%emt 00:00:32]} Qh4 {[%clk
00:34:03]} {[%emt 00:00:26]} 32. Qb6 {[%clk 00:01:01]} {[%emt 00:01:10]} Qxc4
{[%clk 00:24:09]} {[%emt 00:10:23]} 33. a7 {[%clk 00:01:10]} {[%emt 00:00:21]}
Rc8 {[%clk 00:24:34]} {[%emt 00:00:05]} 34. h3 {[%clk 00:00:39]} {[%emt
00:01:01]} Qa2 {[%clk 00:19:36]} {[%emt 00:05:27]} 35. Qb8 {[%clk 00:00:38]}
{[%emt 00:00:31]} Kg7 {[%clk 00:20:00]} {[%emt 00:00:07]} 36. Rb7+ {[%clk
00:00:42]} {[%emt 00:00:26]} Kh6 {[%clk 00:20:13]} {[%emt 00:00:17]} 37. Qxc8
{[%clk 00:01:07]} {[%emt 00:00:06]} 1-0

[Event "Elitserien 2019/2020, round 7-9"]
[Site "Elite stadshotellet, Kungsgatan 6, Vaxjo, Sweden"]
[Date "2020.10.17"]
[Round "2.8"]
[White "Akerman, Emil"]
[Black "Lundstedt, Peter"]
[Result "0-1"]
[TimeControl "90 minutes for 40 moves + 30 minutes for the rest of the game + 30 seconds per move from move one."]
[WhiteFideId "1715828"]
[BlackFideId "1718444"]
[WhiteElo "1964"]
[BlackElo "2088"]

1. c4 {[%clk 01:30:50]} {[%emt 00:00:10]} e6 {[%clk 01:30:52]} {[%emt
00:00:08]} 2. Nf3 {[%clk 01:30:51]} {[%emt 00:00:28]} d5 {[%clk 01:31:15]}
{[%emt 00:00:07]} 3. d4 {[%clk 01:31:01]} {[%emt 00:00:20]} Nf6 {[%clk
01:31:32]} {[%emt 00:00:12]} 4. cxd5 {[%clk 01:31:04]} {[%emt 00:00:28]} exd5
{[%clk 01:31:55]} {[%emt 00:00:07]} 5. Nc3 {[%clk 01:31:06]} {[%emt 00:00:28]}
c6 {[%clk 01:28:34]} {[%emt 00:03:51]} 6. g3 {[%clk 01:31:28]} {[%emt
00:00:08]} Bf5 {[%clk 01:27:54]} {[%emt 00:01:10]} 7. Bf4 {[%clk 01:30:12]}
{[%emt 00:01:46]} Bd6 {[%clk 01:26:43]} {[%emt 00:01:41]} 8. Bxd6 {[%clk
01:24:06]} {[%emt 00:06:37]} Qxd6 {[%clk 01:27:06]} {[%emt 00:00:06]} 9. Bg2
{[%clk 01:23:43]} {[%emt 00:00:54]} O-O {[%clk 01:27:07]} {[%emt 00:00:29]} 10.
O-O {[%clk 01:23:49]} {[%emt 00:00:24]} Nbd7 {[%clk 01:21:13]} {[%emt
00:06:23]} 11. Rc1 {[%clk 01:15:42]} {[%emt 00:08:37]} Rfe8 {[%clk 01:20:47]}
{[%emt 00:00:56]} 12. h3 {[%clk 01:15:37]} {[%emt 00:00:36]} h6 {[%clk
01:18:10]} {[%emt 00:03:07]} 13. Re1 {[%clk 01:13:22]} {[%emt 00:02:45]} Ne4
{[%clk 01:16:27]} {[%emt 00:02:13]} 14. Nh4 {[%clk 01:00:00]} {[%emt 00:13:53]}
Bh7 {[%clk 01:15:55]} {[%emt 00:01:01]} 15. Nxe4 {[%clk 00:58:04]} {[%emt
00:02:26]} dxe4 {[%clk 01:14:08]} {[%emt 00:02:16]} 16. Bh1 {[%clk 00:56:34]}
{[%emt 00:01:59]} e3 {[%clk 01:09:41]} {[%emt 00:04:56]} 17. d5 {[%clk
00:54:42]} {[%emt 00:02:23]} exf2+ {[%clk 01:06:09]} {[%emt 00:04:03]} 18. Kxf2
{[%clk 00:55:04]} {[%emt 00:00:08]} c5 {[%clk 00:59:57]} {[%emt 00:06:42]} 19.
Qd2 {[%clk 00:53:26]} {[%emt 00:02:08]} Nf6 {[%clk 00:58:48]} {[%emt 00:01:38]}
20. Qf4 {[%clk 00:46:16]} {[%emt 00:07:40]} Qd8 {[%clk 00:52:46]} {[%emt
00:06:32]} 21. Nf5 {[%clk 00:43:26]} {[%emt 00:03:20]} Nxd5 {[%clk 00:45:18]}
{[%emt 00:07:58]} 22. Qg4 {[%clk 00:43:03]} {[%emt 00:00:53]} Qf6 {[%clk
00:43:49]} {[%emt 00:01:59]} 23. Bxd5 {[%clk 00:42:18]} {[%emt 00:01:14]} Bxf5
{[%clk 00:43:49]} {[%emt 00:00:31]} 24. Qf3 {[%clk 00:40:55]} {[%emt 00:01:53]}
Re7 {[%clk 00:30:11]} {[%emt 00:14:08]} 25. g4 {[%clk 00:39:48]} {[%emt
00:01:37]} Qd4+ {[%clk 00:28:29]} {[%emt 00:02:11]} 26. Kg2 {[%clk 00:37:51]}
{[%emt 00:02:27]} Bg6 {[%clk 00:28:30]} {[%emt 00:00:29]} 27. Rc4 {[%clk
00:29:55]} {[%emt 00:08:26]} Qxc4 {[%clk 00:27:53]} {[%emt 00:01:08]} 28. Bxc4
{[%clk 00:30:01]} {[%emt 00:00:24]} Be4 {[%clk 00:28:20]} {[%emt 00:00:03]} 29.
Bxf7+ {[%clk 00:29:19]} {[%emt 00:01:12]} Kf8 {[%clk 00:24:57]} {[%emt
00:03:53]} 30. Bd5+ {[%clk 00:29:03]} {[%emt 00:00:45]} Bxf3+ {[%clk 00:25:20]}
{[%emt 00:00:07]} 31. Kxf3 {[%clk 00:29:11]} {[%emt 00:00:22]} Rd8 {[%clk
00:25:17]} {[%emt 00:00:33]} 32. Rd1 {[%clk 00:26:31]} {[%emt 00:03:10]} Rf7+
{[%clk 00:19:50]} {[%emt 00:05:58]} 33. Kg3 {[%clk 00:25:31]} {[%emt 00:01:30]}
Rf6 {[%clk 00:17:55]} {[%emt 00:02:24]} 34. e4 {[%clk 00:24:44]} {[%emt
00:01:16]} Ke7 {[%clk 00:18:02]} {[%emt 00:00:23]} 35. Rc1 {[%clk 00:22:48]}
{[%emt 00:02:26]} b6 {[%clk 00:18:06]} {[%emt 00:00:27]} 36. Rc3 {[%clk
00:20:20]} {[%emt 00:02:57]} Kd6 {[%clk 00:14:39]} {[%emt 00:03:57]} 37. Ra3
{[%clk 00:18:37]} {[%emt 00:02:13]} Rd7 {[%clk 00:14:58]} {[%emt 00:00:11]} 38.
Kg2 {[%clk 00:10:32]} {[%emt 00:08:35]} Ke5 {[%clk 00:14:19]} {[%emt 00:01:08]}
39. Kg3 {[%clk 00:10:18]} {[%emt 00:00:45]} g5 {[%clk 00:10:39]} {[%emt
00:04:10]} 40. Rc3 {[%clk 00:07:24]} {[%emt 00:03:24]} Rc7 {[%clk 00:08:26]}
{[%emt 00:02:43]} 41. a4 {[%clk 00:03:31]} {[%emt 00:04:23]} a6 {[%clk
00:05:59]} {[%emt 00:02:57]} 42. b3 {[%clk 00:27:30]} {[%emt 00:06:30]} b5
{[%clk 00:33:00]} {[%emt 00:03:29]} 43. a5 {[%clk 00:27:45]} {[%emt 00:00:14]}
Kd4 {[%clk 00:31:09]} {[%emt 00:02:22]} 44. Rc1 {[%clk 00:26:22]} {[%emt
00:01:54]} c4 {[%clk 00:31:09]} {[%emt 00:00:31]} 45. Rd1+ {[%clk 00:26:04]}
{[%emt 00:00:48]} Ke5 {[%clk 00:30:46]} {[%emt 00:00:53]} 46. bxc4 {[%clk
00:24:07]} {[%emt 00:02:27]} bxc4 {[%clk 00:31:07]} {[%emt 00:00:09]} 47. Ba8
{[%clk 00:24:30]} {[%emt 00:00:08]} c3 {[%clk 00:30:20]} {[%emt 00:01:16]} 48.
Rd5+ {[%clk 00:24:38]} {[%emt 00:00:22]} Ke6 {[%clk 00:30:46]} {[%emt
00:00:04]} 49. e5 {[%clk 00:24:39]} {[%emt 00:00:28]} Rf8 {[%clk 00:30:10]}
{[%emt 00:01:07]} 0-1

[Event "Elitserien 2019/2020, round 7-9"]
[Site "Elite stadshotellet, Kungsgatan 6, Vaxjo, Sweden"]
[Date "2020.10.18"]
[Round "3.1"]
[White "Jepson, Christian"]
[Black "Berg, Emanuel"]
[Result "1-0"]
[TimeControl "90 minutes for 40 moves + 30 minutes for the rest of the game + 30 seconds per move from move one."]
[WhiteTitle "IM"]
[BlackTitle "GM"]
[WhiteFideId "1701185"]
[BlackFideId "1704060"]
[WhiteElo "2384"]
[BlackElo "2544"]

1. d4 {[%clk 01:22:55]} {[%emt 00:08:04]} Nf6 {[%clk 01:30:52]} {[%emt
00:00:09]} 2. c4 {[%clk 01:23:17]} {[%emt 00:00:07]} g6 {[%clk 01:31:18]}
{[%emt 00:00:05]} 3. Nc3 {[%clk 01:23:40]} {[%emt 00:00:07]} Bg7 {[%clk
01:31:43]} {[%emt 00:00:06]} 4. e4 {[%clk 01:24:02]} {[%emt 00:00:08]} d6
{[%clk 01:32:08]} {[%emt 00:00:05]} 5. Be2 {[%clk 01:24:05]} {[%emt 00:00:26]}
O-O {[%clk 01:32:30]} {[%emt 00:00:09]} 6. Nf3 {[%clk 01:24:26]} {[%emt
00:00:09]} e5 {[%clk 01:32:49]} {[%emt 00:00:12]} 7. d5 {[%clk 01:24:48]}
{[%emt 00:00:07]} a5 {[%clk 01:33:03]} {[%emt 00:00:16]} 8. Bg5 {[%clk
01:25:07]} {[%emt 00:00:11]} h6 {[%clk 01:33:23]} {[%emt 00:00:11]} 9. Be3
{[%clk 01:24:14]} {[%emt 00:01:22]} Ng4 {[%clk 01:09:03]} {[%emt 00:24:50]} 10.
Bd2 {[%clk 01:24:33]} {[%emt 00:00:12]} f5 {[%clk 01:06:30]} {[%emt 00:03:04]}
11. h3 {[%clk 01:24:53]} {[%emt 00:00:10]} Nf6 {[%clk 01:04:47]} {[%emt
00:02:13]} 12. exf5 {[%clk 01:25:00]} {[%emt 00:00:23]} gxf5 {[%clk 01:04:43]}
{[%emt 00:00:34]} 13. Qc1 {[%clk 01:25:21]} {[%emt 00:00:09]} f4 {[%clk
01:01:01]} {[%emt 00:04:12]} 14. g3 {[%clk 01:25:27]} {[%emt 00:00:23]} e4
{[%clk 00:40:19]} {[%emt 00:21:12]} 15. Nh4 {[%clk 01:23:41]} {[%emt 00:02:16]}
fxg3 {[%clk 00:35:57]} {[%emt 00:04:53]} 16. fxg3 {[%clk 01:23:31]} {[%emt
00:00:40]} Kh7 {[%clk 00:35:39]} {[%emt 00:00:47]} 17. Be3 {[%clk 01:15:52]}
{[%emt 00:08:09]} Na6 {[%clk 00:20:34]} {[%emt 00:15:35]} 18. Qd2 {[%clk
01:15:46]} {[%emt 00:00:35]} Nc5 {[%clk 00:19:46]} {[%emt 00:01:18]} 19. O-O-O
{[%clk 01:11:21]} {[%emt 00:04:56]} a4 {[%clk 00:18:46]} {[%emt 00:01:30]} 20.
Rdf1 {[%clk 01:00:58]} {[%emt 00:10:52]} c6 {[%clk 00:16:02]} {[%emt 00:03:14]}
21. Qc2 {[%clk 00:53:54]} {[%emt 00:07:34]} cxd5 {[%clk 00:11:46]} {[%emt
00:04:47]} 22. cxd5 {[%clk 00:51:59]} {[%emt 00:02:25]} Qb6 {[%clk 00:05:52]}
{[%emt 00:06:25]} 23. Kb1 {[%clk 00:36:16]} {[%emt 00:16:12]} a3 {[%clk
00:05:56]} {[%emt 00:00:26]} 24. b3 {[%clk 00:36:19]} {[%emt 00:00:27]} Bd7
{[%clk 00:02:07]} {[%emt 00:04:20]} 25. Rxf6 {[%clk 00:32:56]} {[%emt
00:03:52]} Bxf6 {[%clk 00:01:44]} {[%emt 00:00:53]} 26. Nxe4 {[%clk 00:32:53]}
{[%emt 00:00:33]} Qxb3+ {[%clk 00:00:35]} {[%emt 00:01:39]} 27. Qxb3 {[%clk
00:24:48]} {[%emt 00:08:35]} Nxb3 {[%clk 00:00:59]} {[%emt 00:00:06]} 28. Nxf6+
{[%clk 00:24:44]} {[%emt 00:00:34]} Rxf6 {[%clk 00:01:27]} {[%emt 00:00:02]} 29.
axb3 {[%clk 00:23:09]} {[%emt 00:02:05]} Ra5 {[%clk 00:01:10]} {[%emt
00:00:47]} 30. Bd3+ {[%clk 00:15:13]} {[%emt 00:08:25]} Kg8 {[%clk 00:01:38]}
{[%emt 00:00:02]} 31. Ka2 {[%clk 00:13:25]} {[%emt 00:02:18]} h5 {[%clk
00:01:59]} {[%emt 00:00:09]} 32. Bb6 {[%clk 00:08:58]} {[%emt 00:04:57]} Ra8
{[%clk 00:01:40]} {[%emt 00:00:48]} 33. Rf1 {[%clk 00:07:15]} {[%emt 00:02:13]}
Rxf1 {[%clk 00:01:04]} {[%emt 00:01:07]} 34. Bxf1 {[%clk 00:07:41]} {[%emt
00:00:03]} Kf7 {[%clk 00:01:12]} {[%emt 00:00:23]} 35. Bd3 {[%clk 00:04:55]}
{[%emt 00:03:16]} Rg8 {[%clk 00:00:35]} {[%emt 00:01:07]} 36. Nf5 {[%clk
00:03:17]} {[%emt 00:02:08]} Bxf5 {[%clk 00:00:31]} {[%emt 00:00:35]} 37. Bxf5
{[%clk 00:03:39]} {[%emt 00:00:07]} Rxg3 {[%clk 00:00:46]} {[%emt 00:00:15]} 38.
Kxa3 {[%clk 00:02:44]} {[%emt 00:01:25]} Kf6 {[%clk 00:00:39]} {[%emt
00:00:36]} 39. Be6 {[%clk 00:02:09]} {[%emt 00:01:05]} Ke5 {[%clk 00:00:54]}
{[%emt 00:00:15]} 40. Ka4 {[%clk 00:02:06]} {[%emt 00:00:33]} Ke4 {[%clk
00:00:31]} {[%emt 00:00:53]} 41. b4 {[%clk 00:00:52]} {[%emt 00:01:44]} Ke5
{[%clk 00:19:48]} {[%emt 00:11:13]} 42. Kb5 {[%clk 00:30:17]} {[%emt 00:01:06]}
Rb3 {[%clk 00:19:20]} {[%emt 00:00:57]} 43. Ba5 {[%clk 00:30:10]} {[%emt
00:00:37]} Rg3 {[%clk 00:19:17]} {[%emt 00:00:33]} 44. Kb6 {[%clk 00:28:06]}
{[%emt 00:02:34]} Rg7 {[%clk 00:19:40]} {[%emt 00:00:07]} 45. b5 {[%clk
00:28:13]} {[%emt 00:00:23]} Rh7 {[%clk 00:18:03]} {[%emt 00:02:06]} 46. Bc3+
{[%clk 00:27:31]} {[%emt 00:01:14]} Ke4 {[%clk 00:18:25]} {[%emt 00:00:08]} 47.
Bb4 {[%clk 00:27:54]} {[%emt 00:00:08]} Ke5 {[%clk 00:18:38]} {[%emt 00:00:16]}
48. Ka7 {[%clk 00:25:10]} {[%emt 00:03:13]} Rc7 {[%clk 00:18:16]} {[%emt
00:00:52]} 49. Be1 {[%clk 00:24:54]} {[%emt 00:00:46]} Kd4 {[%clk 00:17:52]}
{[%emt 00:00:54]} 50. Kb6 {[%clk 00:22:49]} {[%emt 00:02:36]} Rc1 {[%clk
00:15:43]} {[%emt 00:02:38]} 51. Bg3 {[%clk 00:21:00]} {[%emt 00:02:19]} Kc4
{[%clk 00:15:51]} {[%emt 00:00:22]} 52. Bxd6 {[%clk 00:20:38]} {[%emt
00:00:53]} Rb1 {[%clk 00:16:17]} {[%emt 00:00:04]} 53. Kxb7 {[%clk 00:18:24]}
{[%emt 00:02:44]} Kxb5 {[%clk 00:16:30]} {[%emt 00:00:17]} 54. Be7 {[%clk
00:18:03]} {[%emt 00:00:49]} Re1 {[%clk 00:16:28]} {[%emt 00:00:34]} 55. Kc7
{[%clk 00:17:01]} {[%emt 00:01:32]} Kc4 {[%clk 00:16:43]} {[%emt 00:00:16]} 56.
Bf6 {[%clk 00:16:40]} {[%emt 00:00:51]} Kc5 {[%clk 00:16:40]} {[%emt 00:00:32]}
57. Bh4 {[%clk 00:15:50]} {[%emt 00:01:19]} Re4 {[%clk 00:13:18]} {[%emt
00:03:54]} 58. Bf2+ {[%clk 00:16:02]} {[%emt 00:00:18]} Kb5 {[%clk 00:13:42]}
{[%emt 00:00:06]} 59. Kd6 {[%clk 00:14:49]} {[%emt 00:01:42]} 1-0